[Event "NOR-ch Youth 2019"]
[Site "Skien"]
[Date "2019.11.10"]
[Round "7.10"]
[White "Tenold, Andreas"]
[Black "Abdrlauf, Elham"]
[Result "0-1"]
[ECO "B31"]
[WhiteElo "1838"]
[BlackElo "2244"]
[Annotator "NA"]
[PlyCount "40"]
[EventDate "2019.11.08"]
[EventType "swiss"]
[EventCountry "NOR"]
[SourceTitle "playchess.com"]
[Source "ChessBase"]
[SourceQuality "1"]
[TimeControl "5400+30"]

{[%evp 8,28,2,16,13,4,30,20,34,21,29,24,37,33,35,33,35,18,32767,32767,32767,-84,-68]} 1. e4 {[%emt 0:02:27]} c5 {[%emt 0:00:00]} 2. Nf3 {[%emt 0:00:07]} Nc6 {[%emt 0:00:50]} 3. Bb5 {[%emt 0:00:37]} g6 {[%emt 0:00:09]} 4. Bxc6 {[%emt 0:01:21]} bxc6 {[%emt 0:00:59]} 5. O-O {[%emt 0:00:30]} Bg7 {[%emt 0:00:01]} 6. Re1 {[%emt 0:01:04]} Nh6 {[%emt 0:01:44]} 7. c3 {[%emt 0:04:41]} O-O {[%emt 0:00:18]} 8. d4 {[%emt 0:02:48]} cxd4 {[%emt 0:00:13]} 9. cxd4 {[%emt 0:00:11]} f5 {[%emt 0:00:28]} 10. e5 {[%emt 0:04:46]} Nf7 {[%emt 0:01:07]} 11. Nc3 {[%emt 0:02:48]} e6 {[%emt 0:00:23]} 12. h4 {[%emt 0:07:55]} h6 {[%emt 0:00:35]} 13. Qd2 {[%emt 0:04:56]} d6 {[%emt 0:04:10]} 14. b3 $17 {[%emt 0:05:20] [#]} (14. exd6 $14 {stays ahead.} Qxd6 15. Qf4) 14... c5 $1 {[%emt 0:03:10]} 15. dxc5 {[%emt 0:08:36]} dxe5 {[%emt 0:00:34]} 16. Bb2 {[%emt 0:11:41]} e4 {[%emt 0:01:32]} 17. Qxd8 {[%emt 0:00:06]} Rxd8 {[%emt 0:00:03]} 18. Nh2 {[%emt 0:02:08]} Rd2 {[%emt 0:00:04]} 19. Rab1 {[%emt 0:09:49]} Rxb2 {[%emt 0:00:04]} 20. Rxb2 {[%emt 0:00:34]} Bxc3 {[%emt 0:00:03]} 0-1

[Event "NOR-ch Youth 2019"]
[Site "Skien"]
[Date "2019.11.10"]
[Round "7.11"]
[White "Shehzad, Shazil"]
[Black "Unneland, Mathias"]
[Result "1/2-1/2"]
[ECO "C07"]
[WhiteElo "2173"]
[BlackElo "2029"]
[Annotator "NA"]
[PlyCount "57"]
[EventDate "2019.11.08"]
[EventType "swiss"]
[EventCountry "NOR"]
[SourceTitle "playchess.com"]
[Source "ChessBase"]
[SourceQuality "1"]
[TimeControl "5400+30"]

1. e4 {[%emt 0:00:00]} e6 {[%emt 0:00:00]} 2. d4 {[%emt 0:00:00]} d5 {[%emt 0:00:00]} 3. Nd2 {[%emt 0:00:00]} c5 {[%emt 0:00:00]} 4. Ngf3 {[%emt 0:00:02]} cxd4 {[%emt 0:00:06]} 5. exd5 {[%emt 0:00:04]} Qxd5 {[%emt 0:00:08]} 6. Bc4 {[%emt 0:00:05]} Qd6 {[%emt 0:00:06]} 7. O-O {[%emt 0:00:21]} Nf6 {[%emt 0:00:05]} 8. Nb3 {[%emt 0:00:08]} Nc6 {[%emt 0:00:06]} 9. Nbxd4 {[%emt 0:00:23]} Nxd4 {[%emt 0:00:10]} 10. Nxd4 {[%emt 0:00:07]} Be7 {[%emt 0:00:08]} 11. Nb5 {[%emt 0:07:25]} Qc6 {[%emt 0:00:20]} 12. Qe2 {[%emt 0:07:56]} O-O {[%emt 0:05:12]} 13. Bf4 {[%emt 0:03:35]} a6 {[%emt 0:02:25]} 14. Nd4 {[%emt 0:01:31]} Qe4 {[%emt 0:11:21]} 15. Qxe4 {[%emt 0:00:59]} Nxe4 {[%emt 0:00:07]} 16. Rfe1 {[%emt 0:01:40]} Nf6 {[%emt 0:01:24]} 17. a4 {[%emt 0:03:28]} Rd8 {[%emt 0:00:27]} 18. c3 $11 {[%emt 0:04:15]} Bd7 {[%emt 0:06:06]} 19. Bb3 {[%emt 0:08:58]} Bc5 {[%emt 0:05:10]} 20. Rad1 {[%emt 0:03:51]} b5 {[%emt 0:03:45]} 21. axb5 {[%emt 0:03:50]} axb5 {[%emt 0:01:22]} 22. h3 {[%emt 0:06:44]} b4 {[%emt 0:06:48]} 23. c4 {[%emt 0:02:12]} Bc8 {[%emt 0:03:18]} 24. Nc2 {[%emt 0:03:30]} Bb7 {[%emt 0:03:31]} 25. Be3 {[%emt 0:08:28]} Ne4 {[%emt 0:01:20]} 26. Ba4 {[%emt 0:17:32]} Bxe3 {[%emt 0:02:45]} 27. Nxe3 {[%emt 0:01:13]} Nc5 {[%emt 0:00:11]} 28. Bb5 {[%emt 0:01:27]} h6 {[%emt 0:00:46]} 29. f3 {[%emt 0:12:40]} 1/2-1/2

[Event "NOR-ch Youth 2019"]
[Site "Skien"]
[Date "2019.11.10"]
[Round "7.12"]
[White "Oye-Stromberg, Alexander"]
[Black "Evenshaug, Amadeus Hestvik"]
[Result "1-0"]
[ECO "B12"]
[WhiteElo "1980"]
[BlackElo "1711"]
[Annotator "NA"]
[PlyCount "45"]
[EventDate "2019.11.08"]
[EventType "swiss"]
[EventCountry "NOR"]
[SourceTitle "playchess.com"]
[Source "ChessBase"]
[SourceQuality "1"]
[TimeControl "5400+30"]

{[%evp 8,26,116,83,79,76,102,70,94,83,106,95,107,87,109,71,82,65,32767,32767,92]} 1. e4 {[%emt 0:00:00]} c6 {[%emt 0:00:04]} 2. d4 {[%emt 0:00:00]} d5 {[%emt 0:00:04]} 3. f3 {[%emt 0:00:00]} dxe4 {[%emt 0:02:37]} 4. fxe4 {[%emt 0:00:00]} Nf6 {[%emt 0:00:24]} 5. e5 {[%emt 0:00:00]} Nd5 {[%emt 0:00:05]} 6. Nf3 {[%emt 0:00:02]} Bg4 {[%emt 0:00:27]} 7. Be2 {[%emt 0:00:08]} e6 {[%emt 0:00:33]} 8. O-O {[%emt 0:00:07]} Be7 {[%emt 0:00:31]} 9. c4 {[%emt 0:02:39]} Nb6 {[%emt 0:00:25]} 10. Nc3 {[%emt 0:00:58]} O-O {[%emt 0:02:51]} 11. Be3 {[%emt 0:03:08]} N8d7 {[%emt 0:03:36]} 12. Ne4 {[%emt 0:11:00]} Qc7 {[%emt 0:07:54]} 13. Bf4 {[%emt 0:08:51]} Bf5 $16 {[%emt 0:09:49]} 14. Ng3 {[%emt 0:07:32]} Bg6 {[%emt 0:02:57]} 15. h4 {[%emt 0:02:28]} h6 {[%emt 0:04:02]} 16. Qd2 {[%emt 0:05:07]} Rfd8 {[%emt 0:05:54]} 17. h5 {[%emt 0:08:13]} Bh7 {[%emt 0:02:41]} 18. Rad1 {[%emt 0:00:09]} Bf8 {[%emt 0:07:20]} 19. Bd3 {[%emt 0:07:49]} Bxd3 {[%emt 0:04:32]} 20. Qxd3 {[%emt 0:00:10]} Nb8 {[%emt 0:07:40]} 21. Ne4 {[%emt 0:07:54]} Na6 {[%emt 0:08:05]} 22. Bxh6 {[%emt 0:03:56]} gxh6 {[%emt 0:02:19]} 23. Nf6+ {[%emt 0:00:11]} 1-0

[Event "NOR-ch Youth 2019"]
[Site "Skien"]
[Date "2019.11.10"]
[Round "7.13"]
[White "Eliseev, Sergey"]
[Black "Lye, Sverre"]
[Result "1/2-1/2"]
[ECO "A48"]
[WhiteElo "1911"]
[BlackElo "1779"]
[Annotator "NA"]
[PlyCount "79"]
[EventDate "2019.11.08"]
[EventType "swiss"]
[EventCountry "NOR"]
[SourceTitle "playchess.com"]
[Source "ChessBase"]
[SourceQuality "1"]
[TimeControl "5400+30"]

1. d4 {[%emt 0:00:00]} Nf6 {[%emt 0:00:28]} 2. Nf3 {[%emt 0:00:00]} g6 {[%emt 0:00:27]} 3. Bg5 {[%emt 0:00:00]} Bg7 {[%emt 0:00:20]} 4. Nbd2 {[%emt 0:00:00]} O-O {[%emt 0:02:05]} 5. e4 {[%emt 0:00:17]} d6 {[%emt 0:02:11]} 6. c3 {[%emt 0:06:49]} Nbd7 {[%emt 0:02:38]} 7. Bd3 $11 {[%emt 0:09:16]} c5 {[%emt 0:02:41]} 8. d5 {[%emt 0:03:22]} Rb8 {[%emt 0:11:15]} 9. a4 {[%emt 0:01:32]} Ne8 {[%emt 0:05:14]} 10. Nc4 {[%emt 0:01:32]} Ndf6 {[%emt 0:06:34]} 11. Qd2 {[%emt 0:07:34]} Bg4 {[%emt 0:02:52]} 12. Qf4 {[%emt 0:04:33]} Bd7 {[%emt 0:10:18]} 13. a5 {[%emt 0:11:18]} b5 {[%emt 0:07:11]} 14. axb6 {[%emt 0:00:25]} axb6 {[%emt 0:00:18]} 15. Bh6 {[%emt 0:00:48]} b5 {[%emt 0:02:21]} 16. Bxg7 {[%emt 0:02:48]} Kxg7 {[%emt 0:04:03]} 17. Ncd2 {[%emt 0:10:44]} e6 {[%emt 0:05:53]} 18. dxe6 {[%emt 0:05:58]} Bxe6 {[%emt 0:01:05]} 19. O-O {[%emt 0:03:37]} Nd7 {[%emt 0:08:19]} 20. Ra7 {[%emt 0:02:50]} h6 {[%emt 0:05:08]} 21. b4 {[%emt 0:03:38]} g5 {[%emt 0:04:28]} 22. Qg3 {[%emt 0:01:14]} Qf6 {[%emt 0:00:53]} 23. e5 {[%emt 0:05:54]} Nxe5 {[%emt 0:01:59]} 24. Nxe5 {[%emt 0:00:19]} Qxe5 {[%emt 0:00:31]} 25. Qxe5+ {[%emt 0:00:19]} dxe5 {[%emt 0:00:09]} 26. bxc5 {[%emt 0:03:34]} Rd8 {[%emt 0:01:20]} 27. Bxb5 {[%emt 0:06:27]} Rxd2 {[%emt 0:00:07]} 28. Rc1 {[%emt 0:04:38]} Nf6 {[%emt 0:03:08]} 29. c6 {[%emt 0:00:51]} Nd5 {[%emt 0:01:16]} 30. c4 {[%emt 0:00:43]} Nb6 {[%emt 0:00:40]} 31. h3 {[%emt 0:01:36]} Rc8 {[%emt 0:02:14]} 32. Rb7 {[%emt 0:00:19]} Nxc4 {[%emt 0:00:42]} 33. Rxc4 {[%emt 0:02:31]} Bxc4 {[%emt 0:00:14]} 34. Bxc4 {[%emt 0:00:01]} Rxc6 {[%emt 0:00:23]} 35. Bxf7 {[%emt 0:00:48]} Rc1+ {[%emt 0:00:23]} 36. Kh2 {[%emt 0:00:04]} Rxf2 {[%emt 0:00:08]} 37. Bd5+ {[%emt 0:00:55]} Kg6 {[%emt 0:04:19]} 38. Be4+ {[%emt 0:00:17]} Kf6 {[%emt 0:00:57]} 39. Rb6+ {[%emt 0:00:18]} Kg7 40. Rg6+ 1/2-1/2

[Event "NOR-ch Youth 2019"]
[Site "Skien"]
[Date "2019.11.10"]
[Round "7.14"]
[White "Nordquelle, Amelia"]
[Black "Austad, Eirik"]
[Result "0-1"]
[ECO "E72"]
[WhiteElo "1670"]
[BlackElo "1753"]
[Annotator "NA"]
[PlyCount "72"]
[EventDate "2019.11.08"]
[EventType "swiss"]
[EventCountry "NOR"]
[SourceTitle "playchess.com"]
[Source "ChessBase"]
[SourceQuality "1"]
[TimeControl "5400+30"]

1. d4 {[%emt 0:03:42]} Nf6 {[%emt 0:00:10]} 2. c4 {[%emt 0:00:36]} g6 {[%emt 0:01:23]} 3. Nc3 {[%emt 0:00:50]} Bg7 {[%emt 0:00:36]} 4. g3 {[%emt 0:02:08]} O-O {[%emt 0:04:06]} 5. Bg2 {[%emt 0:00:43]} d6 {[%emt 0:01:13]} 6. e4 {[%emt 0:04:32]} Na6 {[%emt 0:09:59]} 7. Nge2 {[%emt 0:04:05]} c5 {[%emt 0:18:16]} 8. d5 {[%emt 0:04:34]} e5 {[%emt 0:03:14]} 9. O-O {[%emt 0:04:49]} Nc7 {[%emt 0:01:35]} 10. f4 {[%emt 0:09:02]} exf4 {[%emt 0:07:23]} 11. gxf4 {[%emt 0:03:24]} Nd7 {[%emt 0:07:17]} 12. Qd3 {[%emt 0:05:35]} Rb8 {[%emt 0:04:27]} 13. Be3 {[%emt 0:04:45]} a6 {[%emt 0:02:47]} 14. a4 {[%emt 0:01:39]} b6 {[%emt 0:03:40]} 15. Rfe1 {[%emt 0:09:27]} Nf6 {[%emt 0:11:42]} 16. h3 {[%emt 0:03:50]} Nh5 {[%emt 0:01:46]} 17. Kh2 {[%emt 0:10:12]} f5 {[%emt 0:01:16]} 18. Rf1 {[%emt 0:04:19]} fxe4 {[%emt 0:01:05]} 19. Bxe4 {[%emt 0:00:49]} Qh4 {[%emt 0:01:59]} 20. Bf2 {[%emt 0:01:01]} Qe7 {[%emt 0:01:29]} 21. Be3 {[%emt 0:03:54]} Bf5 {[%emt 0:02:10]} 22. Bxf5 {[%emt 0:06:54]} Rxf5 {[%emt 0:00:33]} 23. Rae1 {[%emt 0:01:10]} Re8 {[%emt 0:01:06]} 24. Ng3 {[%emt 0:03:18]} Nxg3 {[%emt 0:00:35]} 25. Kxg3 {[%emt 0:00:17]} Qd7 {[%emt 0:01:23]} 26. Kh2 {[%emt 0:01:28]} Ref8 {[%emt 0:00:54]} 27. Ne4 {[%emt 0:02:25]} Bh6 {[%emt 0:01:28]} 28. Qb3 {[%emt 0:02:34]} b5 {[%emt 0:02:51]} 29. axb5 {[%emt 0:01:24]} axb5 {[%emt 0:00:41]} 30. cxb5 {[%emt 0:00:53]} Nxb5 {[%emt 0:01:50]} 31. Kg3 {[%emt 0:00:31]} Nd4 {[%emt 0:03:00]} 32. Qc4 {[%emt 0:00:28]} Rh5 {[%emt 0:00:35]} 33. Nf2 {[%emt 0:00:40]} Nf5+ {[%emt 0:00:11]} 34. Kf3 {[%emt 0:00:16]} Nxe3 {[%emt 0:00:21]} 35. Kxe3 {[%emt 0:00:06]} Rxf4 {[%emt 0:00:37]} 36. Qe2 {[%emt 0:00:46]} Re5+ {[%emt 0:00:16]} 0-1

[Event "NOR-ch Youth 2019"]
[Site "Skien"]
[Date "2019.11.10"]
[Round "7.15"]
[White "Kvaloy, Aksel Bu"]
[Black "Tunsjo, Axel"]
[Result "1/2-1/2"]
[ECO "B82"]
[WhiteElo "2209"]
[BlackElo "2038"]
[Annotator "NA"]
[PlyCount "49"]
[EventDate "2019.11.08"]
[EventType "swiss"]
[EventCountry "NOR"]
[SourceTitle "playchess.com"]
[Source "ChessBase"]
[SourceQuality "1"]
[TimeControl "5400+30"]

1. e4 {[%emt 0:03:23]} c5 {[%emt 0:00:32]} 2. Nf3 {[%emt 0:00:04]} e6 {[%emt 0:00:04]} 3. d4 {[%emt 0:00:11]} cxd4 {[%emt 0:00:07]} 4. Nxd4 {[%emt 0:00:05]} Nc6 {[%emt 0:00:05]} 5. Nc3 {[%emt 0:00:07]} Qc7 {[%emt 0:00:06]} 6. Be3 {[%emt 0:00:12]} a6 {[%emt 0:00:22]} 7. a3 {[%emt 0:00:13]} Nf6 {[%emt 0:01:05]} 8. f4 {[%emt 0:00:12]} d6 {[%emt 0:03:29]} 9. Qf3 {[%emt 0:00:20]} Bd7 {[%emt 0:03:18]} 10. O-O-O {[%emt 0:08:09]} Nxd4 {[%emt 0:00:46]} (10... Rc8 $11 {keeps the balance.}) 11. Bxd4 $16 {[%emt 0:00:31]} Be7 {[%emt 0:17:51]} 12. Rg1 {[%emt 0:05:45]} h5 {[%emt 0:14:03]} 13. h3 {[%emt 0:09:33]} h4 {[%emt 0:01:56]} 14. g4 {[%emt 0:01:38]} e5 {[%emt 0:08:17]} 15. Be3 {[%emt 0:06:54]} Rc8 {[%emt 0:03:45]} 16. Qf2 {[%emt 0:08:38]} Bc6 {[%emt 0:04:48]} 17. Bb6 {[%emt 0:12:23]} Qb8 {[%emt 0:00:24]} 18. fxe5 {[%emt 0:02:32]} dxe5 {[%emt 0:03:46]} 19. Bc4 {[%emt 0:01:35]} Rf8 {[%emt 0:04:57]} 20. Rgf1 {[%emt 0:03:45]} Bxe4 {[%emt 0:00:50]} 21. Bxf7+ {[%emt 0:06:25]} Kxf7 {[%emt 0:00:08]} 22. Nxe4 {[%emt 0:01:07]} Kg8 {[%emt 0:00:06]} 23. Qe2 {[%emt 0:06:57]} Rc6 {[%emt 0:01:45]} 24. Nxf6+ {[%emt 0:01:22]} Bxf6 {[%emt 0:02:20]} 25. Be3 {[%emt 0:04:32]} 1/2-1/2

[Event "NOR-ch Youth 2019"]
[Site "Skien"]
[Date "2019.11.10"]
[Round "7.16"]
[White "Olsen, William Alexander"]
[Black "Rekdal, Yngve Mahle"]
[Result "1-0"]
[ECO "E18"]
[WhiteElo "1842"]
[BlackElo "1213"]
[Annotator "NA"]
[PlyCount "61"]
[EventDate "2019.11.08"]
[EventType "swiss"]
[EventCountry "NOR"]
[SourceTitle "playchess.com"]
[Source "ChessBase"]
[SourceQuality "1"]
[TimeControl "5400+30"]

{[%evp 8,33,22,15,25,6,11,16,22,9,11,12,12,0,30,0,1,4,15,14,23,23,32767,32767,154,141,150,81]} 1. Nf3 {[%emt 0:00:00]} d5 {[%emt 0:00:00]} 2. c4 {[%emt 0:00:00]} e6 {[%emt 0:00:00]} 3. g3 {[%emt 0:00:00]} Nf6 {[%emt 0:00:00]} 4. Bg2 {[%emt 0:00:04]} Be7 {[%emt 0:00:09]} 5. O-O {[%emt 0:00:07]} O-O {[%emt 0:00:29]} 6. d4 {[%emt 0:00:23]} b6 {[%emt 0:00:24]} 7. Nc3 {[%emt 0:00:44]} Bb7 {[%emt 0:00:17]} 8. Ne5 {[%emt 0:00:49]} Nbd7 {[%emt 0:01:16]} 9. Bf4 {[%emt 0:01:09]} c5 {[%emt 0:00:30]} 10. cxd5 {[%emt 0:00:48]} exd5 {[%emt 0:00:41]} 11. dxc5 {[%emt 0:00:07]} Nxc5 {[%emt 0:00:15]} 12. Rc1 {[%emt 0:00:58]} Ne6 {[%emt 0:00:44]} 13. Qb3 {[%emt 0:01:01]} Nxf4 {[%emt 0:00:44]} 14. gxf4 {[%emt 0:00:02]} Rb8 {[%emt 0:07:23]} 15. Rfd1 {[%emt 0:03:12]} d4 {[%emt 0:02:26]} ({Better is} 15... Bd6 $14) 16. Bxb7 {[%emt 0:00:39]} Rxb7 $16 {[%emt 0:00:06]} 17. e3 {[%emt 0:00:41]} Bc5 {[%emt 0:11:30]} 18. Ne2 {[%emt 0:03:08]} Ne4 {[%emt 0:03:10]} 19. Qc2 {[%emt 0:00:16]} Nxf2 {[%emt 0:03:33]} 20. Kxf2 {[%emt 0:00:52]} Qh4+ {[%emt 0:02:48]} 21. Kg2 {[%emt 0:00:31]} dxe3 {[%emt 0:00:27]} 22. Rf1 {[%emt 0:00:48]} f6 {[%emt 0:07:06]} 23. Qc4+ {[%emt 0:01:15]} Kh8 {[%emt 0:00:13]} 24. Nf3 {[%emt 0:00:18]} Qg4+ {[%emt 0:00:32]} 25. Ng3 {[%emt 0:02:40]} Bd6 {[%emt 0:03:15]} 26. f5 {[%emt 0:01:18]} Bf4 {[%emt 0:08:51]} 27. Qe4 {[%emt 0:01:22]} Rd7 {[%emt 0:07:27]} 28. Rc4 {[%emt 0:01:26]} Rfd8 {[%emt 0:02:26]} 29. Qxf4 {[%emt 0:02:16]} Qxf4 {[%emt 0:02:23]} 30. Rxf4 {[%emt 0:00:15]} Rd2+ {[%emt 0:01:04]} 31. Nxd2 {[%emt 0:00:25]} 1-0

[Event "NOR-ch Youth 2019"]
[Site "Skien"]
[Date "2019.11.10"]
[Round "7.18"]
[White "Digernes, Mikael"]
[Black "Steensen, Oskar"]
[Result "0-1"]
[ECO "C55"]
[WhiteElo "1715"]
[BlackElo "1457"]
[Annotator "NA"]
[PlyCount "120"]
[EventDate "2019.11.08"]
[EventType "swiss"]
[EventCountry "NOR"]
[SourceTitle "playchess.com"]
[Source "ChessBase"]
[SourceQuality "1"]
[TimeControl "5400+30"]

1. e4 {[%emt 0:00:00]} e5 {[%emt 0:00:00]} 2. Nf3 {[%emt 0:00:00]} Nc6 {[%emt 0:00:00]} 3. Bc4 {[%emt 0:00:00]} Nf6 {[%emt 0:00:00]} 4. d3 {[%emt 0:00:19]} Be7 {[%emt 0:00:35]} 5. O-O {[%emt 0:00:41]} O-O {[%emt 0:00:09]} 6. c3 {[%emt 0:00:09]} d5 {[%emt 0:00:35]} 7. exd5 {[%emt 0:00:32]} Nxd5 {[%emt 0:00:15]} 8. Re1 {[%emt 0:00:58]} Bf6 {[%emt 0:00:58]} 9. Nbd2 {[%emt 0:01:45]} Bf5 {[%emt 0:01:35]} 10. Ne4 {[%emt 0:07:12]} Nb6 {[%emt 0:01:13]} 11. Bb3 {[%emt 0:04:38]} h6 {[%emt 0:02:29]} 12. Be3 {[%emt 0:03:03]} Bxe4 {[%emt 0:03:56]} 13. dxe4 {[%emt 0:00:43]} Qxd1 {[%emt 0:00:04]} 14. Raxd1 {[%emt 0:00:44]} Rad8 {[%emt 0:00:48]} 15. Bd5 {[%emt 0:01:59]} Na5 {[%emt 0:02:08]} 16. b4 {[%emt 0:11:57]} Nxd5 {[%emt 0:01:19]} 17. exd5 {[%emt 0:07:17]} Nc4 {[%emt 0:01:19]} 18. Bc5 {[%emt 0:04:33]} Rfe8 {[%emt 0:00:36]} 19. Re4 {[%emt 0:00:19]} b5 {[%emt 0:00:40]} 20. Ne1 {[%emt 0:09:29]} Be7 {[%emt 0:03:03]} 21. Nc2 {[%emt 0:11:00]} c6 {[%emt 0:01:19]} 22. Ne3 {[%emt 0:14:27]} Bxc5 {[%emt 0:01:04]} 23. bxc5 {[%emt 0:00:33]} Nxe3 {[%emt 0:00:27]} 24. Rxe3 {[%emt 0:00:20]} Rxd5 {[%emt 0:00:24]} 25. Rxd5 {[%emt 0:04:14]} cxd5 {[%emt 0:00:06]} 26. Rd3 {[%emt 0:00:37]} Rd8 {[%emt 0:00:18]} 27. g3 {[%emt 0:01:06]} f6 {[%emt 0:01:09]} 28. c6 {[%emt 0:01:46]} a6 {[%emt 0:00:05]} 29. c7 {[%emt 0:01:49]} Rc8 {[%emt 0:00:08]} 30. Rxd5 {[%emt 0:00:10]} Rxc7 {[%emt 0:00:06]} 31. a4 {[%emt 0:04:29]} bxa4 {[%emt 0:00:21]} 32. Ra5 {[%emt 0:00:09]} Rxc3 {[%emt 0:00:06]} 33. Rxa4 {[%emt 0:00:19]} Rc6 {[%emt 0:00:07]} 34. Kg2 {[%emt 0:00:08]} Kh7 {[%emt 0:00:17]} 35. h4 {[%emt 0:01:01]} g5 {[%emt 0:00:22]} 36. hxg5 {[%emt 0:02:10]} hxg5 {[%emt 0:00:08]} 37. g4 {[%emt 0:00:51]} Kg6 {[%emt 0:00:10]} 38. Ra5 {[%emt 0:01:02]} Kf7 {[%emt 0:00:12]} 39. Kf3 {[%emt 0:00:22]} Ke6 {[%emt 0:00:21]} 40. Ke4 {[%emt 0:00:20]} Kd6 {[%emt 0:00:21]} 41. f3 {[%emt 0:02:42]} Kc7 {[%emt 0:00:14]} 42. Kd5 {[%emt 0:00:34]} Rb6 {[%emt 0:00:43]} 43. Kc4 {[%emt 0:02:10]} Kb7 {[%emt 0:01:49]} 44. Rd5 {[%emt 0:01:07]} Rc6+ {[%emt 0:00:38]} 45. Kb4 {[%emt 0:00:29]} Kb6 {[%emt 0:00:26]} 46. Ka4 {[%emt 0:01:11]} a5 {[%emt 0:01:34]} 47. Rb5+ {[%emt 0:00:39]} Kc7 {[%emt 0:00:39]} 48. Rxa5 {[%emt 0:01:17]} Rc3 {[%emt 0:00:16]} 49. Ra7+ {[%emt 0:00:37]} Kd6 {[%emt 0:00:08]} 50. Kb4 {[%emt 0:00:29]} Rxf3 {[%emt 0:00:09]} 51. Ra6+ {[%emt 0:00:19]} Ke7 {[%emt 0:00:07]} 52. Kc5 {[%emt 0:00:42]} Rf4 {[%emt 0:00:15]} 53. Ra7+ {[%emt 0:00:28]} Ke6 {[%emt 0:00:06]} 54. Ra6+ {[%emt 0:00:07]} Kf7 {[%emt 0:00:09]} 55. Kd6 {[%emt 0:00:49]} Rxg4 {[%emt 0:00:21]} 56. Ra7+ {[%emt 0:00:29]} Kg6 {[%emt 0:00:07]} 57. Ke6 {[%emt 0:00:07]} Rf4 {[%emt 0:00:21]} 58. Ra8 {[%emt 0:00:25]} Kh5 {[%emt 0:00:09]} 59. Rh8+ {[%emt 0:01:00]} Kg4 {[%emt 0:00:07]} 60. Rg8 {[%emt 0:00:33]} e4 {[%emt 0:00:06] Ke5 e3+} 0-1

[Event "NOR-ch Youth 2019"]
[Site "Skien"]
[Date "2019.11.10"]
[Round "7.19"]
[White "Kierulf, Villum Brevick"]
[Black "Khoo-Thwe, Louis"]
[Result "1/2-1/2"]
[ECO "D05"]
[WhiteElo "1373"]
[BlackElo "1660"]
[Annotator "NA"]
[PlyCount "61"]
[EventDate "2019.11.08"]
[EventType "swiss"]
[EventCountry "NOR"]
[SourceTitle "playchess.com"]
[Source "ChessBase"]
[SourceQuality "1"]
[TimeControl "5400+30"]

1. Nf3 {[%emt 0:00:00]} Nf6 {[%emt 0:00:00]} 2. d4 {[%emt 0:00:00]} e6 {[%emt 0:00:00]} 3. e3 {[%emt 0:00:06]} b6 {[%emt 0:00:00]} 4. Bd3 {[%emt 0:00:37]} Bb7 {[%emt 0:00:04]} 5. Nbd2 {[%emt 0:00:07]} d5 {[%emt 0:00:07]} 6. O-O {[%emt 0:00:07]} Bd6 {[%emt 0:00:38]} 7. b3 {[%emt 0:00:07]} c5 {[%emt 0:00:00]} 8. Bb2 {[%emt 0:00:05]} Nc6 {[%emt 0:00:00]} 9. a3 {[%emt 0:00:09]} O-O {[%emt 0:00:08]} 10. Ne5 {[%emt 0:02:02]} Bxe5 {[%emt 0:00:53]} 11. dxe5 {[%emt 0:00:14]} Nd7 {[%emt 0:00:06]} 12. f4 {[%emt 0:01:06]} a6 {[%emt 0:01:44]} 13. c4 {[%emt 0:01:59]} dxc4 {[%emt 0:00:37]} 14. Nxc4 {[%emt 0:00:20]} Na5 {[%emt 0:06:06]} 15. Nxa5 {[%emt 0:03:54]} bxa5 {[%emt 0:00:06]} 16. Qc2 {[%emt 0:01:40]} g6 {[%emt 0:00:37]} 17. Rfd1 {[%emt 0:02:10]} Qc7 {[%emt 0:02:58]} 18. Rac1 {[%emt 0:03:48]} Rac8 {[%emt 0:02:49]} 19. b4 {[%emt 0:00:49]} axb4 {[%emt 0:00:16]} 20. axb4 {[%emt 0:00:13]} Qd8 {[%emt 0:01:23]} 21. bxc5 {[%emt 0:01:51]} Rxc5 {[%emt 0:01:32]} 22. Qe2 {[%emt 0:01:55]} Rxc1 {[%emt 0:01:36]} 23. Rxc1 {[%emt 0:01:23]} Qa8 {[%emt 0:07:12]} 24. Bd4 {[%emt 0:04:52]} Rc8 {[%emt 0:02:02]} 25. Rb1 {[%emt 0:01:45]} Nc5 {[%emt 0:01:51]} 26. Bxc5 {[%emt 0:02:08]} Rxc5 {[%emt 0:00:05]} 27. Qb2 {[%emt 0:00:17]} Rc7 {[%emt 0:02:53]} 28. Qb6 {[%emt 0:03:47]} Rd7 {[%emt 0:02:30]} 29. Bf1 {[%emt 0:01:41]} Kg7 {[%emt 0:02:11]} 30. Rb2 {[%emt 0:03:12]} Qc8 {[%emt 0:02:01]} 31. Qb3 {[%emt 0:03:07]} 1/2-1/2

[Event "NOR-ch Youth 2019"]
[Site "Skien"]
[Date "2019.11.10"]
[Round "7.20"]
[White "Salte, Hakon"]
[Black "Brattgjerd, Isak Vinh"]
[Result "0-1"]
[ECO "B23"]
[WhiteElo "1285"]
[BlackElo "1699"]
[Annotator "NA"]
[PlyCount "82"]
[EventDate "2019.11.08"]
[EventType "swiss"]
[EventCountry "NOR"]
[SourceTitle "playchess.com"]
[Source "ChessBase"]
[SourceQuality "1"]
[TimeControl "5400+30"]

1. e4 {[%emt 0:00:00]} c5 {[%emt 0:00:46]} 2. Nc3 {[%emt 0:00:00]} a6 {[%emt 0:00:38]} 3. a4 {[%emt 0:02:16]} d6 {[%emt 0:00:08]} 4. g3 {[%emt 0:01:38]} Nf6 {[%emt 0:00:16]} 5. Bg2 {[%emt 0:01:24]} Nc6 {[%emt 0:00:14]} 6. d3 {[%emt 0:01:18]} e6 {[%emt 0:00:50]} 7. f4 {[%emt 0:03:28]} d5 {[%emt 0:00:32]} 8. e5 {[%emt 0:02:11]} Nd7 {[%emt 0:00:09]} 9. Nf3 {[%emt 0:01:05]} Be7 {[%emt 0:00:43]} 10. O-O {[%emt 0:06:24]} Rb8 {[%emt 0:00:56]} 11. Bd2 {[%emt 0:05:04]} b5 {[%emt 0:03:32]} 12. axb5 {[%emt 0:02:10]} axb5 {[%emt 0:00:54]} 13. Ne2 {[%emt 0:04:32]} Bb7 {[%emt 0:06:44]} 14. d4 {[%emt 0:01:10]} c4 {[%emt 0:00:42]} 15. c3 {[%emt 0:02:00]} Na5 {[%emt 0:05:32]} 16. Nc1 {[%emt 0:02:40]} Qb6 {[%emt 0:02:09]} 17. b4 {[%emt 0:03:24]} cxb3 {[%emt 0:01:58]} 18. Nxb3 {[%emt 0:00:18]} Nc4 {[%emt 0:00:07]} 19. Qe2 {[%emt 0:06:06]} Rc8 {[%emt 0:06:53]} 20. Rfc1 {[%emt 0:03:54]} Ba6 {[%emt 0:04:40]} 21. Bf1 {[%emt 0:04:46]} Ra8 {[%emt 0:03:37]} 22. Qe1 {[%emt 0:06:46]} O-O {[%emt 0:03:08]} 23. Be3 {[%emt 0:02:32]} Rfb8 {[%emt 0:04:55]} 24. Bxc4 {[%emt 0:05:26]} bxc4 {[%emt 0:00:41]} 25. Nbd2 {[%emt 0:01:03]} Qc6 {[%emt 0:02:03]} 26. Rcb1 {[%emt 0:02:20]} Nb6 {[%emt 0:01:45]} 27. g4 {[%emt 0:02:33]} g6 {[%emt 0:04:12]} 28. g5 {[%emt 0:01:40]} Bb5 {[%emt 0:02:25]} 29. h4 {[%emt 0:01:15]} Ba4 {[%emt 0:02:22]} 30. Rc1 {[%emt 0:01:27]} Bb3 {[%emt 0:01:21]} 31. Rab1 {[%emt 0:01:26]} Na4 {[%emt 0:02:50]} 32. Qg3 {[%emt 0:01:47]} Ba3 {[%emt 0:00:54]} 33. Rf1 {[%emt 0:04:08]} Nxc3 {[%emt 0:01:00]} 34. Rbe1 {[%emt 0:00:08]} Bc2 {[%emt 0:03:22]} 35. Qh2 {[%emt 0:00:41]} Ne4 {[%emt 0:02:12]} 36. Nxe4 {[%emt 0:00:37]} Bxe4 {[%emt 0:00:05]} 37. h5 {[%emt 0:00:11]} c3 {[%emt 0:01:37]} 38. hxg6 {[%emt 0:01:38]} fxg6 {[%emt 0:00:12]} 39. Qh6 {[%emt 0:00:54]} Bf8 {[%emt 0:00:13]} 40. Qh4 {[%emt 0:00:19]} Ra2 {[%emt 0:00:24]} 41. Nh2 {[%emt 0:01:23]} Rg2+ {[%emt 0:00:13]} 0-1